Cogmind - Beta 13 @@@ ROGUE MODE // 2024.05.04 @ 18:00:41 Player: Compound1080 Result: Self-destructed Performance ------------- Evolutions (1) 500 Regions Visited (2) 400 Robots Destroyed (0) 0 Value Destroyed (0) 0 Prototype IDs (0) 0 Alien Tech Used (0) 0 Bonus (200) 200 TOTAL SCORE: 1100 Bonus ------- Pacifist 200 Cogmind --------- Core Integrity 318/400 Matter 260/300 Energy 125/125 System Corruption 0% Temperature Cool (9) Movement Flying (117) Ox1 Location -9/Materials Parts ------- > --- POWER (1) -------- Light Ion Engine > --- PROPULSION (4) --- Flight Unit Flight Unit > --- UTILITY (2) ------ Small Storage Unit Signal Interpreter > --- WEAPON (2) ------- Light Assault Rifle > --- INVENTORY (8) ---- Light Ion Engine Wheel Wheel Medium Storage Unit EM Pulse Gun Peak State ------------ > --- POWER ------------ Light Ion Engine > --- PROPULSION ------- Flight Unit Flight Unit Flight Unit Flight Unit > --- UTILITY ---------- Small Storage Unit Signal Interpreter > --- WEAPON ----------- Light Assault Rifle > --- INVENTORY -------- Light Ion Engine Wheel Wheel Medium Storage Unit EM Pulse Gun [Rating: 8] Favorites ----------- Power Light Ion Engine Engine Light Ion Engine Propulsion Flight Unit Leg Aluminum Leg Flight Unit Flight Unit Utility Small Storage Unit Storage Small Storage Unit Processor Signal Interpreter Weapon Light Assault Rifle Ballistic Gun Light Assault Rifle Build | -11 -10 -9 ------- Run | Yrd Mat Mat Slots Evolved 2 | . . 2 Power . | . . . Propulsion 2 | . . 2 Utility . | . . . Weapon . | . . . Parts Attached 12 | 4 5 3 Power 1 | 1 . . Engine 1 | 1 . . Core . | . . . Reactor . | . . . Propulsion 6 | 2 2 2 Treads . | . . . Leg 2 | 2 . . Wheel . | . . . Hover . | . . . Flight 4 | . 2 2 Utility 4 | 1 3 . Device . | . . . Storage 3 | 1 2 . Processor 1 | . 1 . Hackware . | . . . Protection . | . . . Artifact . | . . . Weapon 1 | . . 1 Energy Gun . | . . . Energy Cannon . | . . . Ballistic Gun 1 | . . 1 Ballistic Cannon . | . . . Launcher . | . . . Special Weapon . | . . . Impact Weapon . | . . . Slashing Weapon . | . . . Piercing Weapon . | . . . Special Melee Weapon . | . . . Unidentified Prototypes . | . . . Parts Lost 2 | . . 2 Power . | . . . Propulsion 2 | . . 2 Utility . | . . . Weapon . | . . . Highest Loss Streak 2 | . . 2 To Critical Strikes . | . . . Average Slot Usage (%) 65 | . 60 81 Engine 13 | . 14 11 Leg 11 | . 14 . Flight 19 | . 13 44 Storage 13 | . 14 11 Processor 5 | . 3 11 Naked Turns . | . . . Heaviest Build 13 | 8 13 8 Greatest Support 20 | 20 20 16 Greatest Overweight (x) 2 | 2 . . Average Overweight (x) . | . . . Largest Inventory Capacity 10 | 8 10 8 Average Capacity 8 | 7 8 8 Most Carried 9 | 5 9 7 Average Carried 5 | 2 6 5 Final Capacity 8 | 8 8 8 Final Carried 8 | 5 8 5 Class Distribution -------------------- 87% | Mutant 12% | Sprinter Dominant Class ---------------- Mutant | -10/Materials Sprinter | -9/Materials Resources | -11 -10 -9 ----------- Run | Yrd Mat Mat Matter Collected 280 | 184 96 . Remotely . | . . . Salvage Created . | . . . Parts . | . . . Haulers Intercepted . | . . . Recyclers Shooed . | . . . Parts Field Recycled . | . . . Retrieved Matter . | . . . Parts Self-Destructed . | . . . Prevented . | . . . Kills | -11 -10 -9 ------- Run | Yrd Mat Mat Combat Hostiles Destroyed . | . . . Classes Destroyed . | . . . Best Kill Streak . | . . . Combat Bots Only . | . . . Max Kills in Single Turn . | . . . Gunslinging . | . . . Exploded . | . . . Melee . | . . . Uniques/NPCs Destroyed . | . . . Combat | -11 -10 -9 -------- Run | Yrd Mat Mat Hostile Shots Fired 51 | . . 51 Missed 23 | . . 23 Damage Taken 237 | . . 237 Core 82 | . . 82 Absorbed by Shields . | . . . Core Remaining (%) 100 | 100 100 . Volleys Fired 10 | . . 10 Largest 1 | . . 1 Hottest 20 | . . 20 Shots Fired 10 | . . 10 Gun 10 | . . 10 Cannon . | . . . Launcher . | . . . Special . | . . . Kinetic 10 | . . 10 Thermal . | . . . Explosive . | . . . Electromagnetic . | . . . Robot Hit Streak 1 | . . 1 Robot Miss Streak 3 | . . 3 Penetration Max . | . . . Secondary Targets . | . . . Shots Hit Robots 3 | . . 3 Core Hits 1 | . . 1 Critical Kills . | . . . Critical Parts Destroyed . | . . . Critical Strikes . | . . . Melee Attacks . | . . . Impact . | . . . Slashing . | . . . Piercing . | . . . Sneak Attacks . | . . . Combat Hostiles . | . . . Follow-up Attacks . | . . . Damage Inflicted 22 | . . 22 Guns 22 | . . 22 Cannons . | . . . Explosions . | . . . Melee . | . . . Ramming . | . . . Kinetic 22 | . . 22 Thermal . | . . . Explosive . | . . . Electromagnetic . | . . . Impact . | . . . Slashing . | . . . Piercing . | . . . Highest Corruption . | . . . Average Corruption . | . . . Corruption Purged . | . . . Corruption Blocked . | . . . Overload Shots . | . . . Overflow Damage . | . . . Projectiles . | . . . Explosions . | . . . Melee . | . . . Knockbacks . | . . . Impact . | . . . Kinetic . | . . . Secondary . | . . . Self-Inflicted Damage . | . . . Shots . | . . . Rammed . | . . . Targets Rammed . | . . . Kicked . | . . . Crushed . | . . . Highest Temperature 2 | . . 2 Average Temperature 1 | . . 1 Received Heat Transfer 9 | . . 9 Siege Activations . | . . . Robots Corrupted . | . . . Combat Hostiles . | . . . Parts Fried . | . . . Impact Corruptions . | . . . Robots Melted . | . . . Combat Hostiles . | . . . Parts Melted . | . . . Heat Transferred . | . . . Parts Sabotaged . | . . . Parts Stolen . | . . . Parts Stripped . | . . . Power Chain Reactions . | . . . Alert | -11 -10 -9 ------- Run | Yrd Mat Mat Peak Influence 44 | . 34 44 Initial 14 | . . 14 Average 11 | . 10 32 Maximum Alert Level . | . . . Low Security (%) 100 | 100 100 100 Level 1 . | . . . Level 2 . | . . . Level 3 . | . . . Level 4 . | . . . Level 5 . | . . . High Security . | . . . Max Security . | . . . Squads Dispatched . | . . . Investigation . | . . . Extermination . | . . . Reinforcement . | . . . Assault . | . . . Garrison . | . . . Intercept . | . . . Searches Triggered . | . . . Construction Impeded . | . . . Haulers Reinforced . | . . . Active Scanning Responses . | . . . Cargo Convoy Interrupts . | . . . Stealth | -11 -10 -9 --------- Run | Yrd Mat Mat Distress Signals . | . . . Communications Jammed . | . . . Distress Signals . | . . . Times Spotted 12 | . 2 10 Peak Tracking Total 10 | . 2 10 Tactical Retreats . | . . . Traps | -11 -10 -9 ------- Run | Yrd Mat Mat Traps Triggered . | . . . Indirectly . | . . . Trap Hack Attempts . | . . . Triggered . | . . . Disarmed . | . . . Reprogrammed . | . . . Reused . | . . . Traps Extracted . | . . . Installed . | . . . Triggered . | . . . Machines | -11 -10 -9 ---------- Run | Yrd Mat Mat Machines Disabled . | . . . Max in Single Turn . | . . . Machines Repaired . | . . . Machines Dismantled . | . . . Machines Sabotaged . | . . . Overloaded Fab Kills . | . . . Hacking | -11 -10 -9 --------- Run | Yrd Mat Mat Machines Accessed 4 | . 3 1 Terminals 4 | . 3 1 Fabricators . | . . . Repair Stations . | . . . Recycling Units . | . . . Scanalyzers . | . . . Garrison Access . | . . . Total Hacks 14 | . 12 2 Successful 6 | . 5 1 Failed 8 | . 7 1 Catastrophic 1 | . 1 . Database Lockouts . | . . . Manual 2 | . 2 . Terminals 14 | . 12 2 Fabricators . | . . . Repair Stations . | . . . Recycling Units . | . . . Scanalyzers . | . . . Garrison Access . | . . . Terminal Hacks 6 | . 5 1 Alert Level 1 | . . 1 Locate Traps 3 | . 3 . Transport Status 1 | . 1 . Zone Layout 1 | . 1 . Fabricator Hacks . | . . . Repair Station Hacks . | . . . Recycling Unit Hacks . | . . . Scanalyzer . | . . . Garrison Access Hacks . | . . . Unauthorized Hacks . | . . . Terminals . | . . . Fabricators . | . . . Repair Stations . | . . . Recycling Units . | . . . Scanalyzers . | . . . Garrison Access . | . . . Data Cores Recovered . | . . . Used . | . . . Hacking Detections 4 | . 3 1 Full Trace Events . | . . . Feedback Events . | . . . Feedback Blocked . | . . . Robot Schematics Acquired . | . . . Robots Built . | . . . Authchips . | . . . Time . | . . . Total Robot Build Rating . | . . . Part Schematics Acquired . | . . . Parts Built . | . . . Authchips . | . . . Time . | . . . Total Part Build Rating . | . . . Parts Repaired . | . . . Time . | . . . Parts Recycled . | . . . Recycled Matter . | . . . Retrieved Matter . | . . . Retrieved Components . | . . . Parts Scanalyzed . | . . . Part Schematics Acquired . | . . . Parts Damaged . | . . . Bothacking | -11 -10 -9 ------------ Run | Yrd Mat Mat Used RIF Installer . | . . . Robots Hacked . | . . . Non-combat . | . . . Combat . | . . . Robot Hacks Applied . | . . . Relay Couplers Released . | . . . Fabnet Peak Effective % . | . . . Robots Rewired . | . . . Allies Hacked . | . . . Hacks Repelled . | . . . Allies | -11 -10 -9 -------- Run | Yrd Mat Mat Total Allies . | . . . Largest Group . | . . . Highest-Rated Group . | . . . Highest-Rated Ally . | . . . Total Orders . | . . . Ally Attacks . | . . . Total Damage . | . . . Kills . | . . . Allies Corrupted . | . . . Allies Melted . | . . . Intel | -11 -10 -9 ------- Run | Yrd Mat Mat Robot Analysis Total . | . . . Derelict Logs Recovered . | . . . Drone Launches . | . . . Drone Recoveries . | . . . Exploration | -11 -10 -9 ------------- Run | Yrd Mat Mat Turns Passed 314 | 74 190 50 Spaces Moved 435 | 50 293 92 Core 18 | 18 . . Treads . | . . . Legs 108 | 32 76 . Wheels . | . . . Hover . | . . . Flight 309 | . 217 92 Fastest Speed 31 | 50 37 31 Average Speed 60 | 122 58 31 Slowest Speed 150 | 150 120 31 Overloaded Moves . | . . . Propulsion Burnouts . | . . . Robots Hopped . | . . . Cave-ins Triggered . | . . . Exploration Rate (%) 22 | 4 45 18 Regions Visited 2 Branch Regions . Pre-discovered Areas . | . . . Known Exits Taken 1 | . 1 . Unknown Exits Taken 1 | 1 . . Scrap Searched . | . . . Spaces Dug . | . . . Terrain Destroyed . | . . . Melee . | . . . Projectile . | . . . AOE . | . . . Terrain Rammed . | . . . Walls Destroyed . | . . . Machines Disabled . | . . . Actions | -11 -10 -9 --------- Run | Yrd Mat Mat Total 478 | 62 311 105 Wait . | . . . Move 433 | 49 292 92 Hop . | . . . Pick Up 17 | 9 8 . Fast Attach 1 | . 1 . Attach 8 | 4 1 3 Detach 1 | . 1 . Swap 3 | . 3 . Drop 5 | . 5 . Fire 10 | . . 10 Melee . | . . . Ram . | . . . Kick . | . . . Crush . | . . . Escape Stasis . | . . . Rewire . | . . . Trap . | . . . Miscellaneous . | . . . Route ------- -11/Scrapyard -10/Materials (discovered 2 exits: *Mat / *Min) -9/Materials History --------- Turn | Location | Event 19 | -11/Scrapyard | Discovered new exit (range 15) 75 | -11/Scrapyard | Entered Materials 207 | -10/Materials | Discovered new exit (range 16) 218 | -10/Materials | Identified exit to Mines 249 | -10/Materials | Discovered new exit (range 15) 255 | -10/Materials | Identified exit to Materials 265 | -10/Materials | Entered another Materials area 265 | -9/Materials | Evolved 2 slots: Propulsion x2 315 | -9/Materials | Self-destructed Last Messages --------------- Retrieving latest reported positions... Found 2 active transport squads. Downloaded coordinate data. 00249_ EXIT=FOUND 00255_ EXIT=IDENTIFIED: MATERIALS 00255_ T-07 Excavator is excavating. PARAMETERS=PROPULSION+2 LOCATION=MATERIALS GOAL=ESCAPE 00276_ Connecting with Recycling Unit... 00279_ K-01 Serf collects debris. 00288_ Connecting with Terminal... >>Alert(Check) Current Alert Level: Low Security 00293_ K-01 Serf collects debris. 00304_ S-10 Pest destroyed. 00308_ K-01 Serf collects debris. 00312_ Flight Unit destroyed. 00312_ K-01 Serf collects debris. 00314_ Flight Unit destroyed. Map ----- +----------------------------------------------------+ | ?????????????????????????????????????????????????? | | ?????????????????????????????????????????????????? | | ?????????????????????????????????????????????????? | | ?????????????????????????????????????????????????? | | ##???????????????????????????????????????????????? | | #??#####????????????????????????????????????????? | | #? ?????????????????????????????????????????? | | #? """?????????????????????????????????????????? | | # """""????????????????????????????????????????? | | # """""????????????????????????????????????????? | | + """""????????????????????????????????????????? | | # """ ???????????????????????????????????????? | | # #??????????????????????????????????????? | | #? ! #??????????????????????????????????????? | | #? #??????????????????????????????????????? | | #??#######??????????????????????????????????????? | | #???????????????????????????????????????????????? | | ##########??????????????????????????????????????? | | # #??????????????????????????????????????? | | # """ ""#??????????????????????????????????????? | | # """ Y"#??????????????????????????? #????????? | | # """ ""#? ???????????????????????? #????????? | | + #? ??#" "????############ s #????????? | | # """ #? ??#" """??# *! %s #????????? | | # """ #? ??#T ss# !! s #????????? | | # """ #? ???" """ s@ ! #????????? | | ## ## ???" """ # #????????? | | ?########### ???? """??# #????????? | | ???????????# #??? ????# *] #????????? | | #######????# #??##??????# ]! #????????? | | #????# #??????????# u* #????????? | | #????# #??????????# #????????? | | #????# ############ k #????????? | | ### #????# """ """ ???????? | | ??# ###### """"""""" ????????? | | ??# """""?? ?????????? | | ??# ######+## g ???????????? | | ??# #??#= ########### ??????????? | | ??# #### #?????????###g#########+???????????? | | ??# + #???????????? #????????????????????? | | ??##+##### ""#???????????? #????????????????????? | | ??? ???# ""#???????????? ????????????????????? | | ???"""???#! T"#????????????T ????????????????????? | | ?? """ ??# ""#???????????? ????????????????????? | | ?? """ ??# ""#?????????????# ???????????????????? | | ? ?# #?????????????? ???????????????????? | | ? """ ?######?????????????? ???????????????????? | | [ """ #????????????????????????????????????????? | | ????? #????????????????????????????????????????? | | ????? #????????????????????????????????????????? | +----------------------------------------------------+ Best States ------------- Heat Dissipation 28 Energy Generation 10 Energy Capacity 125 Matter Stores 300 Matter Capacity 300 Sight Range 16 Terrain Scan Density 10 Evasion (%) 63 Item Schematics ----------------- None Robot Schematics ------------------ None Fabricated ------------ Nothing Alien Tech Used ----------------- None Achievements -------------- None Challenges ------------ None Game ------ Seed QuantumScanPod Manual? 0 Play Time 00:11:10 Cumulative 3.8 hours Start 2024.05.04 @ 17:51:30 End 2024.05.04 @ 18:00:41 Sessions 1 Manual Loads 0 Difficulty Rogue Special Mode None Game No. 8 Rogue 8 Adventurer 0 Explorer 0 Win Type - Total 0 Types 0/0/0/0/0/0/0/0/0 Lore% 10 Gallery% 7 Achievement% 9 Wizard Run 0 Options --------- Layout 1 ASCII 0 Keyboard 0 Movement Mouse Keybinds 0 Fullscreen 2 Font 24/Smallcaps Map View 50x35 Zoom Use 0% Tactical HUD 1 Map Filters NONE Filters NONE Steam 1 RUN: d727e71b-5a35-43c2-bd6f-1d8fceda0668